bitfinex/quotes_SOLUSD_20251204
["timestamp","ask_amount","ask_price","bid_price","bid_amount"]
[1764821705208,12.82818582,144.6,144.59,0.2]
[1764821705630,13.53818582,144.6,144.59,0.2]
[1764821705837,24.47481025,144.6,144.59,0.2]
[1764821706208,48.38367425,144.6,144.59,0.2]
[1764821706521,55.29930357,144.6,144.59,0.2]
[1764821707629,54.58930357,144.6,144.59,0.2]
[1764821708827,47.69930357,144.6,144.59,0.2]
[1764821709028,55.29930357,144.6,144.59,0.2]
[1764821710245,38.99043957,144.6,144.59,0.2]
[1764821711341,8.80994492,144.56,144.53,0.1]
[1764821711513,8.80994492,144.54,144.53,0.8]
[1764821711715,7.6,144.56,144.53,0.8]
[1764821711915,6.91765996,144.56,144.53,0.8]
[1764821712140,15.72760488,144.56,144.53,0.8]
[1764821712332,19.33936527,144.56,144.53,0.8]
[1764821712839,27.24429419,144.57,144.53,0.8]
[1764821713037,37.77559821,144.57,144.53,0.8]
[1764821715546,4.0182409,144.56,144.53,0.8]
[1764821717853,10.93583842,144.56,144.53,0.8]
[1764821718022,6.91759752,144.56,144.53,0.8]
[1764821718747,10.93583842,144.56,144.53,0.8]
[1764821718935,12.82818582,144.56,144.53,0.8]
[1764821719359,27.37797245,144.56,144.53,0.8]
[1764821719642,12.82818582,144.56,144.53,0.8]
[1764821719860,30.8586647,144.57,144.53,0.8]
[1764821720025,8.80994492,144.58,144.54,4.0182409]
[1764821720439,8.80994492,144.58,144.55,0.69]
[1764821721739,15.72654163,144.58,144.55,0.69]
[1764821725451,6.91625707,144.59,144.55,11.62613889]
[1764821725864,6.91625707,144.59,144.56,0.69]
[1764821730174,10.93449797,144.59,144.56,0.69]
[1764821730365,11.58449797,144.59,144.56,0.69]
[1764821731155,12.82818582,144.58,144.56,0.69]
[1764821731472,23.76482278,144.58,144.56,0.69]
[1764821731851,12.82818582,144.58,144.56,0.69]
[1764821732961,19.74509725,144.58,144.56,0.69]
[1764821733362,6.91613605,144.59,144.56,4.7082409]
[1764821733763,6.91613605,144.59,144.57,0.69]
[1764821734153,30.8245357,144.6,144.57,0.69]
[1764821734359,34.8427766,144.6,144.57,0.69]
[1764821734994,39.5110175,144.6,144.57,0.69]
[1764821735775,34.8427766,144.6,144.57,0.69]
[1764821736170,7.6,144.6,144.57,4.7082409]
[1764821736350,15.72521901,144.61,144.57,4.7082409]
[1764821736553,15.72521901,144.61,144.58,0.69]
[1764821736974,19.74345991,144.61,144.58,0.69]
[1764821738787,37.03914297,144.61,144.58,0.69]
[1764821739280,37.68914297,144.61,144.58,0.69]
[1764821739774,34.84186915,144.62,144.58,0.69]
[1764821739982,52.13755221,144.62,144.58,0.69]
[1764821740365,52.78755221,144.62,144.58,0.69]
[1764821740671,13.47818582,144.61,144.58,0.69]
[1764821741475,19.74357583,144.61,144.58,0.69]
[1764821742865,20.76340104,144.6,144.58,0.69]
[1764821757283,27.67908663,144.6,144.58,0.69]
[1764821762302,6.91568559,144.6,144.58,0.69]
[1764821762993,9.48929893,144.59,144.58,0.69]
[1764821763796,15.72524667,144.61,144.58,0.69]
[1764821763992,17.2954958,144.6,144.58,0.69]
[1764821765399,24.588864,144.62,144.59,2.57191059]
[1764821765400,23.908864,144.62,144.59,2.57191059]
[1764821765606,9.48875277,144.61,144.59,2.57191059]
[1764821765906,9.48875277,144.61,144.6,0.71]
[1764821766382,16.308864,144.62,144.6,0.71]
[1764821766577,6.91646484,144.61,144.6,0.71]
[1764821767679,32.03342104,144.63,144.6,0.71]
[1764821767880,6.91646484,144.62,144.6,0.71]
[1764821771677,6.91646484,144.62,144.6,3.28191059]
[1764821772097,6.91646484,144.62,144.61,0.71]
[1764821772302,7.59646484,144.62,144.58,3.28191059]
[1764821772483,7.59646484,144.62,144.59,0.66]
[1764821772678,0.68,144.62,144.59,0.66]
[1764821772879,18.88077459,144.61,144.59,0.66]
[1764821773304,0.68,144.62,144.59,0.66]
[1764821773604,26.47547006,144.62,144.59,0.66]
[1764821774005,7.59469547,144.62,144.59,0.66]
[1764821774184,20.76052731,144.61,144.59,0.66]
[1764821775507,6.91469547,144.62,144.59,3.23191059]
[1764821775685,27.67522278,144.62,144.59,3.23191059]
[1764821776007,27.67522278,144.62,144.6,0.66]
[1764821776303,6.91469547,144.62,144.6,0.66]
[1764821776709,6.91654386,144.61,144.6,0.66]
[1764821778699,6.91654386,144.61,144.59,0.66]
[1764821782799,6.91654386,144.61,144.56,0.66]
[1764821782800,8.80994492,144.59,144.56,0.66]
[1764821783011,2.57191059,144.57,144.53,0.76]
[1764821783214,2.57191059,144.55,144.53,0.1]
[1764821783420,2.57191059,144.54,144.53,0.1]
[1764821783916,40.2424799,144.54,144.53,0.1]
[1764821784490,32.6424799,144.54,144.53,0.1]
[1764821784707,47.16097996,144.54,144.53,0.1]
[1764821790318,30.85211596,144.54,144.53,0.1]
[1764821790715,25.11880892,144.51,144.5,0.2]
[1764821791022,27.69071951,144.51,144.5,0.2]
[1764821791220,28.37071951,144.51,144.5,0.2]
[1764821791518,31.14147419,144.51,144.5,0.2]
[1764821791896,38.06141052,144.51,144.5,0.2]
[1764821792917,38.06141052,144.51,144.5,1e-08]
[1764821793115,38.06141052,144.51,144.48,1e-08]
[1764821793116,9.48994492,144.5,144.48,1e-08]
[1764821793418,8.80994492,144.45,144.44,0.2]
[1764821793604,18.98185551,144.45,144.44,0.2]
[1764821793799,19.66185551,144.45,144.44,0.2]
[1764821794130,19.66185551,144.45,144.42,0.1]
[1764821794131,26.58466617,144.45,144.42,0.1]
[1764821794308,8.80994492,144.42,144.39,0.1]
[1764821794501,29.26949787,144.41,144.39,0.1]
[1764821794915,32.72236536,144.41,144.39,0.1]
[1764821796118,39.64709356,144.41,144.39,0.1]
[1764821797621,44.9883152,144.41,144.39,0.1]
[1764821798016,45.6683152,144.41,144.39,0.1]
[1764821798215,31.93136179,144.41,144.39,0.1]
[1764821798727,29.3594512,144.41,144.39,0.1]
[1764821799819,39.64709356,144.41,144.39,0.1]
[1764821801112,45.0083152,144.41,144.39,0.1]
[1764821801720,48.25022579,144.41,144.39,0.1]
[1764821802221,8.80994492,144.4,144.39,0.1]
[1764821802428,19.67185551,144.4,144.39,0.1]
[1764821803202,26.59706326,144.4,144.39,0.1]
[1764821803525,26.59706326,144.4,144.37,1e-08]
[1764821803526,25.11880892,144.38,144.37,1e-08]
[1764821803711,25.11880892,144.38,144.35,1e-08]
[1764821803712,8.80994492,144.37,144.35,1e-08]
[1764821804033,8.80994492,144.35,144.33,23.11087571]
[1764821804231,29.28949787,144.34,144.33,23.11087571]
[1764821804418,21.66949787,144.34,144.33,23.11087571]
[1764821804730,50.43905082,144.34,144.33,23.11087571]
[1764821805325,50.43905082,144.34,144.33,1e-08]
[1764821805326,57.36713728,144.34,144.33,1e-08]
[1764821805629,28.59758433,144.34,144.33,1e-08]
[1764821805827,28.59758433,144.34,144.33,0.66000001]
[1764821805828,27.69071951,144.34,144.33,0.66000001]
[1764821806213,34.61880597,144.34,144.33,0.66000001]
[1764821806816,2.57191059,144.35,144.33,0.66000001]
[1764821807014,11.38185551,144.35,144.33,0.66000001]
[1764821810054,8.80994492,144.35,144.33,0.66000001]
[1764821811014,11.38185551,144.35,144.33,0.66000001]
[1764821812139,8.80994492,144.35,144.33,0.66000001]
[1764821813123,16.308864,144.36,144.33,7.58853377]
[1764821813314,16.308864,144.36,144.33,0.66000001]
[1764821813315,2.57191059,144.36,144.33,0.66000001]
[1764821813515,2.57191059,144.34,144.33,0.66000001]
[1764821813734,2.57191059,144.35,144.33,0.66000001]
[1764821813941,11.38185551,144.35,144.33,0.66000001]
[1764821814923,8.80994492,144.35,144.33,0.66000001]
[1764821815746,6.92734433,144.36,144.33,0.66000001]
[1764821819243,10.95959108,144.36,144.33,0.66000001]
[1764821819953,6.92734433,144.36,144.33,0.66000001]
[1764821820428,8.80994492,144.37,144.33,11.62067073]
[1764821820629,16.42505824,144.39,144.35,4.03224675]
[1764821820930,8.80994492,144.39,144.34,0.66]
[1764821821131,8.80994492,144.39,144.35,4.03224675]
[1764821821637,12.84219167,144.39,144.36,0.66]
[1764821821955,4.03224675,144.38,144.35,0.66]
[1764821822251,6.92664681,144.37,144.35,0.66]
[1764821822660,12.84219167,144.36,144.33,0.66000001]
[1764821822858,12.84219167,144.36,144.34,0.66]
[1764821823230,6.92605281,144.39,144.35,6.92759991]
[1764821823556,12.84219167,144.38,144.34,0.66]
[1764821824440,15.73642258,144.38,144.34,0.66]
[1764821824746,12.84219167,144.38,144.34,7.58798574]
[1764821825133,8.80994492,144.38,144.34,7.58798574]
[1764821825331,19.7683954,144.38,144.35,0.66]
[1764821825768,6.92574359,144.39,144.35,0.66]
[1764821825955,19.76793526,144.39,144.35,0.66]
[1764821826124,15.73568851,144.39,144.35,0.66]
[1764821826328,15.73568851,144.39,144.35,4.69224675]
[1764821826561,15.73568851,144.39,144.36,0.66]
[1764821827663,25.6221986,144.41,144.37,4.03224675]
[1764821827664,4.03224675,144.41,144.37,4.03224675]
[1764821827856,8.80994492,144.4,144.36,4.69224675]
[1764821828053,4.03224675,144.39,144.36,0.66]
[1764821828228,4.03224675,144.38,144.36,0.66]
[1764821828437,10.95845955,144.38,144.36,0.66]
[1764821829276,4.03224675,144.37,144.35,0.66]
[1764821830530,10.95909133,144.37,144.35,0.66]
[1764821832356,8.80994492,144.36,144.35,0.66]
[1764821832865,15.73707154,144.36,144.35,0.66]
[1764821834450,11.67224675,144.38,144.35,0.66]
[1764821834669,4.03224675,144.37,144.35,0.66]
[1764821835134,8.80994492,144.36,144.33,1e-08]
[1764821835448,12.84219167,144.36,144.33,0.66000001]
[1764821835958,4.03224675,144.34,144.33,1e-08]
[1764821836460,10.96033321,144.34,144.33,1e-08]
[1764821839258,10.96033321,144.34,144.33,0.66000001]
[1764821839459,19.77027813,144.34,144.33,1e-08]
[1764821840535,8.80994492,144.34,144.33,0.66000001]
[1764821840950,10.9600142,144.35,144.33,0.66000001]
[1764821841151,36.07828528,144.36,144.33,0.66000001]
[1764821841467,4.03224675,144.35,144.33,0.66000001]
[1764821842041,12.84219167,144.34,144.33,1e-08]
[1764821842457,19.77027813,144.34,144.33,1e-08]
[1764821842754,20.45027813,144.34,144.33,1e-08]
[1764821842933,19.77027813,144.34,144.33,1e-08]
[1764821843251,15.73803138,144.34,144.33,1e-08]
[1764821843453,20.45027813,144.34,144.33,1e-08]
[1764821844060,28.09027813,144.34,144.33,1e-08]
[1764821844553,27.41027813,144.34,144.33,1e-08]
[1764821844764,23.23625678,144.36,144.33,0.66000001]
[1764821844938,16.308864,144.36,144.33,0.66000001]
[1764821845133,20.34111075,144.36,144.33,0.66000001]
[1764821845334,4.03224675,144.34,144.33,0.66000001]
[1764821845775,4.03224675,144.34,144.33,1e-08]
[1764821845946,30.87600607,144.36,144.33,0.66000001]
[1764821846143,27.26825282,144.36,144.33,0.66000001]
[1764821847967,4.03224675,144.35,144.33,0.66000001]
[1764821849160,4.03224675,144.34,144.33,0.66000001]
[1764821849656,4.03224675,144.34,144.33,1e-08]
[1764821849858,4.71224675,144.34,144.33,1e-08]
[1764821850462,12.84219167,144.34,144.33,1e-08]
[1764821851068,12.84219167,144.35,144.33,0.66000001]
[1764821851765,19.7701103,144.35,144.33,0.66000001]
[1764821853082,4.03224675,144.34,144.33,0.66000001]
[1764821853369,30.87624596,144.36,144.33,0.66000001]
[1764821853578,4.03224675,144.35,144.33,0.66000001]
[1764821855249,10.95995422,144.35,144.33,0.66000001]
[1764821856834,4.03224675,144.35,144.33,0.66000001]
[1764821857264,10.95986111,144.35,144.33,0.66000001]
[1764821858065,4.03224675,144.34,144.33,1e-08]
[1764821858361,4.71224675,144.34,144.33,1e-08]
[1764821858574,4.03224675,144.34,144.33,0.66000001]
[1764821858954,10.95986111,144.35,144.33,0.66000001]
[1764821859771,6.92761436,144.35,144.33,0.66000001]
[1764821860877,36.07830249,144.36,144.33,0.66000001]
[1764821861067,23.23611082,144.36,144.33,0.66000001]
[1764821861444,27.26835757,144.36,144.33,0.66000001]
[1764821864367,6.92663343,144.38,144.34,4.03224675]
[1764821864573,10.95888018,144.38,144.35,0.71]
[1764821864871,4.03224675,144.37,144.35,0.71]
[1764821865467,10.95891882,144.37,144.35,0.71]
[1764821865870,10.95852236,144.38,144.35,0.71]
[1764821866056,12.84219167,144.4,144.35,11.66966634]
[1764821866261,29.15105567,144.4,144.35,11.66966634]
[1764821866463,29.15105567,144.4,144.36,0.68]
[1764821867068,4.03224675,144.39,144.36,0.68]
[1764821867372,10.95800453,144.39,144.36,0.68]
[1764821867872,4.03224675,144.38,144.36,0.68]
[1764821869176,25.11880892,144.36,144.33,1e-08]
[1764821869371,4.03224675,144.35,144.33,0.68000001]
[1764821870277,29.15105567,144.34,144.33,1e-08]
[1764821870484,29.80105567,144.34,144.33,1e-08]
[1764821870652,37.44105567,144.34,144.33,1e-08]
[1764821871148,36.72914213,144.34,144.33,1e-08]
[1764821871352,44.36914213,144.34,144.33,1e-08]
[1764821871546,36.72914213,144.34,144.33,1e-08]
[1764821871778,44.36914213,144.34,144.33,1e-08]
[1764821872782,36.72914213,144.34,144.33,1e-08]
[1764821873153,44.36914213,144.34,144.33,1e-08]
[1764821874674,40.76138888,144.34,144.33,1e-08]
[1764821875272,48.40138888,144.34,144.33,1e-08]
[1764821875473,40.76138888,144.34,144.33,1e-08]
[1764821876178,48.40138888,144.34,144.33,1e-08]
[1764821876364,40.76138888,144.34,144.33,1e-08]
[1764821876765,48.40138888,144.34,144.33,1e-08]
[1764821876970,40.76138888,144.34,144.33,1e-08]
[1764821877166,48.40138888,144.34,144.33,1e-08]
[1764821877350,40.76138888,144.34,144.33,1e-08]
[1764821877556,48.40138888,144.34,144.33,1e-08]
[1764821878581,53.25338023,144.34,144.33,1e-08]
[1764821879157,45.61338023,144.34,144.33,1e-08]
[1764821879968,48.99235043,144.34,144.33,1e-08]
[1764821880384,56.63235043,144.34,144.33,1e-08]
[1764821880879,77.28148427,144.34,144.33,1e-08]
[1764821881459,45.64916255,144.34,144.33,1e-08]
[1764821881678,46.29916255,144.34,144.33,1e-08]
[1764821881857,25.96132835,144.34,144.33,1e-08]
[1764821882058,39.68689538,144.34,144.33,1e-08]
[1764821882283,35.28019235,144.34,144.33,1e-08]
[1764821882482,29.19462532,144.34,144.33,1e-08]
[1764821882665,40.32348643,144.34,144.33,1e-08]
[1764821884984,32.68348643,144.34,144.33,1e-08]
[1764821885384,29.99029855,144.34,144.33,1e-08]
[1764821885988,45.64916255,144.34,144.33,1e-08]
[1764821886288,42.27019235,144.34,144.33,0.68000001]
[1764821886659,42.27019235,144.34,144.33,1e-08]
[1764821886859,34.63019235,144.34,144.33,1e-08]
[1764821888067,35.28019235,144.34,144.33,1e-08]
[1764821888270,45.61338023,144.34,144.33,1e-08]
[1764821888592,52.58104008,144.34,144.33,1e-08]
[1764821888792,55.81433705,144.34,144.33,1e-08]
[1764821888997,66.14752493,144.34,144.33,1e-08]
[1764821889397,55.81433705,144.34,144.33,1e-08]
[1764821889898,34.63019235,144.34,144.33,1e-08]
[1764821890107,42.27019235,144.34,144.33,1e-08]
[1764821890404,42.27019235,144.34,144.33,0.68000001]
[1764821890405,34.63019235,144.34,144.33,0.68000001]
[1764821891277,34.63019235,144.34,144.33,1e-08]
[1764821891677,35.28019235,144.34,144.33,1e-08]
[1764821891898,42.27019235,144.34,144.33,1e-08]
[1764821892077,34.63019235,144.34,144.33,1e-08]
[1764821892278,34.63019235,144.34,144.33,0.68000001]
[1764821894505,34.63019235,144.34,144.33,1e-08]
[1764821894902,42.27019235,144.34,144.33,1e-08]
[1764821895803,45.67338023,144.34,144.33,1e-08]
[1764821896210,53.31338023,144.34,144.33,1e-08]
[1764821896503,52.60338023,144.34,144.33,1e-08]
[1764821896707,42.27019235,144.34,144.33,1e-08]
[1764821898514,55.30652386,144.34,144.33,1e-08]
[1764821899025,56.01652386,144.34,144.33,1e-08]
[1764821899319,8.80994492,144.3,144.27,0.69]
[1764821899507,8.80994492,144.29,144.28,0.69]
[1764821900510,2.58329697,144.3,144.28,0.69]
[1764821900717,11.39324189,144.3,144.28,0.69]
[1764821901303,6.93048721,144.29,144.28,0.69]
[1764821902515,18.3237291,144.29,144.26,3.3789702]
[1764821902701,18.3237291,144.29,144.28,0.69]
[1764821902899,25.82880892,144.28,144.26,3.3789702]
[1764821903097,19.03324189,144.27,144.26,3.3789702]
[1764821903421,37.00787774,144.27,144.26,3.3789702]
[1764821903625,36.29787774,144.27,144.26,3.3789702]
[1764821904123,28.65787774,144.27,144.26,3.3789702]
[1764821904320,37.00787774,144.27,144.26,3.3789702]
[1764821904495,18.32468986,144.27,144.26,3.3789702]
[1764821904812,25.96468986,144.27,144.26,3.3789702]
[1764821905118,29.36787774,144.27,144.26,3.3789702]
[1764821905491,57.82603116,144.27,144.26,3.3789702]
[1764821906191,50.18603116,144.27,144.26,1e-08]
[1764821906393,57.82603116,144.27,144.26,1e-08]
[1764821907016,50.18603116,144.27,144.26,1e-08]
[1764821907213,57.82603116,144.27,144.26,1e-08]
[1764821907412,50.18603116,144.27,144.26,1e-08]
[1764821907604,57.82603116,144.27,144.26,1e-08]
[1764821907810,50.18603116,144.27,144.26,1e-08]
[1764821908006,50.18603116,144.27,144.18,32.70825967]
[1764821908007,25.11880892,144.23,144.2,0.69]
[1764821908315,11.39324189,144.21,144.2,0.69]
[1764821908517,16.308864,144.25,144.2,10.35026239]
[1764821908705,8.80994492,144.24,144.2,10.35026239]
[1764821908902,2.58329697,144.25,144.21,0.83216157]
[1764821909303,16.44994492,144.26,144.22,2.58329697]
[1764821909304,15.74231447,144.26,144.22,2.58329697]
[1764821909500,15.74231447,144.26,144.23,0.69]
[1764821909704,16.308864,144.27,144.24,0.14216157]
[1764821909906,26.84467055,144.29,144.24,2.72545854]
[1764821909907,18.32382503,144.29,144.24,2.72545854]
[1764821910105,34.63268903,144.29,144.25,0.69]
[1764821910498,2.58329697,144.28,144.25,0.69]
[1764821910705,8.80994492,144.27,144.25,0.69]
[1764821911218,15.74169947,144.27,144.25,0.69]
[1764821912819,18.32499644,144.27,144.25,0.69]
[1764821914514,2.58329697,144.26,144.25,0.69]
[1764821914717,18.32499644,144.27,144.25,0.69]
[1764821914907,27.70210589,144.26,144.25,0.69]
[1764821915153,27.70210589,144.26,144.21,10.22329697]
[1764821915317,11.39324189,144.25,144.23,0.69]
[1764821915719,23.948864,144.26,144.23,0.69]
[1764821915924,11.39324189,144.25,144.23,0.69]
[1764821916420,18.32568673,144.25,144.23,0.69]
[1764821916804,8.80994492,144.25,144.23,0.69]
[1764821917204,15.74245313,144.25,144.23,0.69]
[1764821923118,25.82410525,144.26,144.23,0.69]
[1764821923930,8.80994492,144.27,144.23,10.20662523]
[1764821924410,8.80994492,144.27,144.24,0.68]
[1764821924738,15.74164235,144.27,144.24,0.68]
[1764821925734,8.80994492,144.27,144.24,0.68]
[1764821926230,15.74147569,144.27,144.24,0.68]
[1764821927541,6.93101542,144.28,144.24,10.19615845]
[1764821927848,8.80994492,144.28,144.24,10.19615845]
[1764821928025,8.80994492,144.28,144.25,0.68]
[1764821929018,15.74108727,144.28,144.25,0.68]
[1764821929734,25.82279077,144.29,144.25,7.61228003]
[1764821929938,16.308864,144.29,144.26,0.68]
[1764821930166,16.308864,144.29,144.26,3.26329697]
[1764821930542,16.308864,144.29,144.27,0.68]
[1764821931515,6.92959003,144.31,144.27,0.68]
[1764821931718,25.821751,144.31,144.27,0.68]
[1764821932826,25.821751,144.31,144.27,7.61137876]
[1764821932827,9.512887,144.31,144.27,7.61137876]
[1764821933030,2.58329697,144.31,144.27,7.61137876]
[1764821933234,18.32240851,144.32,144.28,0.68]
[1764821933838,15.73911154,144.32,144.28,0.68]
[1764821935243,16.308864,144.33,144.29,2.58329697]
[1764821935416,16.308864,144.33,144.3,0.68]
[1764821936223,25.82076723,144.33,144.28,6.93093635]
[1764821936424,2.58329697,144.31,144.29,0.68]
[1764821937042,11.39324189,144.32,144.29,0.68]
[1764821937344,18.32253246,144.32,144.29,0.68]
[1764821940346,19.77405613,144.32,144.29,0.68]
[1764821940716,4.03482064,144.3,144.26,0.68]
[1764821940922,8.80994492,144.31,144.26,4.71482064]
[1764821941226,12.84476556,144.31,144.27,6.93134956]
[1764821941535,12.84476556,144.31,144.27,7.61134956]
[1764821941741,12.84476556,144.31,144.28,0.68]
[1764821942341,19.7744759,144.31,144.28,0.68]
[1764821942760,4.03482064,144.31,144.28,0.68]
[1764821943053,18.60397359,144.32,144.28,0.68]
[1764821943222,14.56915295,144.32,144.28,7.61072265]
[1764821943428,18.60397359,144.32,144.28,7.61072265]
[1764821943626,10.96397359,144.32,144.29,0.68]
[1764821943828,4.03482064,144.31,144.29,0.68]
[1764821945244,10.96397359,144.32,144.29,0.68]
[1764821948550,4.03482064,144.31,144.29,0.68]
[1764821948739,4.03482064,144.31,144.27,6.93139993]
[1764821948740,12.84476556,144.3,144.27,0.68]
[1764821949457,4.03482064,144.32,144.29,6.93041396]
[1764821949635,20.34368464,144.33,144.29,6.93041396]
[1764821949954,20.34368464,144.33,144.3,0.68]
[1764821950171,4.71482064,144.32,144.28,0.68]
[1764821950334,10.96421434,144.32,144.29,0.68]
[1764821951427,4.03482064,144.31,144.29,0.68]
[1764821951646,12.84476556,144.31,144.28,0.68]
[1764821951852,8.80994492,144.3,144.28,0.68]
[1764821952033,12.84476556,144.29,144.26,0.68]
[1764821952233,19.77558962,144.29,144.24,10.96764786]
[1764821952458,12.84476556,144.28,144.25,0.71]
[1764821953337,8.80994492,144.28,144.25,4.74482064]
[1764821953650,8.80994492,144.28,144.25,0.71]
[1764821953857,8.80994492,144.28,144.26,0.71]
[1764821954354,15.74095951,144.28,144.26,0.71]
[1764821954547,27.27430436,144.29,144.26,0.71]
[1764821955054,23.23948372,144.29,144.26,0.71]
[1764821957636,20.34368464,144.31,144.26,11.67656894]
[1764821958057,8.80994492,144.3,144.27,0.71]
[1764821958266,12.84476556,144.3,144.27,0.71]
[1764821959756,19.77510017,144.3,144.27,0.71]
[1764821961370,20.49510017,144.3,144.26,0.71]
[1764821961948,19.77510017,144.3,144.26,7.64176236]
[1764821962565,19.77510017,144.3,144.27,0.71]
[1764821963770,20.49510017,144.3,144.26,7.64176236]
[1764821964167,20.49510017,144.3,144.27,0.71]
[1764821965667,0.72,144.29,144.26,0.71]
[1764821966047,20.49510017,144.3,144.26,0.71]
[1764821966370,15.74027953,144.3,144.26,0.71]
[1764821967871,16.46027953,144.3,144.26,0.71]
[1764821968068,4.75482064,144.29,144.22,6.93385106]
[1764821968262,4.03482064,144.28,144.24,0.71]
[1764821968461,4.03482064,144.29,144.24,4.74482064]
[1764821968875,4.03482064,144.29,144.25,0.71]
[1764821969165,10.96544492,144.29,144.25,0.71]
[1764821969468,11.68544492,144.29,144.25,0.71]
[1764821969645,8.80994492,144.28,144.25,0.71]
[1764821969851,12.84476556,144.28,144.25,0.71]
[1764821970757,4.75482064,144.27,144.23,7.64323666]
[1764821971072,4.75482064,144.27,144.23,0.71]
[1764821971073,4.03482064,144.26,144.23,0.71]
[1764821971267,4.03482064,144.26,144.24,0.71]
[1764821972071,4.03482064,144.26,144.23,0.71]
[1764821972572,4.03482064,144.25,144.21,15.28430205]
[1764821972873,4.03482064,144.25,144.22,0.71]
[1764821973576,7.6520556,144.26,144.22,0.71]
[1764821973782,10.96687624,144.26,144.22,0.71]
[1764821974157,6.9320556,144.26,144.22,0.71]
[1764821974454,16.308864,144.27,144.24,4.03482064]
[1764821974650,16.308864,144.27,144.23,4.03482064]
[1764821974852,16.308864,144.27,144.23,4.74482064]
[1764821975146,16.308864,144.27,144.24,0.71]
[1764821975349,16.308864,144.27,144.24,4.74482064]
[1764821975749,16.308864,144.27,144.25,0.71]
[1764821978487,6.93063734,144.29,144.25,11.67715082]
[1764821978859,6.93063734,144.29,144.26,0.71]
[1764821979077,7.65063734,144.29,144.26,0.71]
[1764821979377,11.68545798,144.29,144.26,0.71]
[1764821979677,4.03482064,144.27,144.24,0.71]
[1764821980248,4.75482064,144.27,144.23,0.71]
[1764821980469,4.75482064,144.27,144.24,0.71]
[1764821981382,7.65177559,144.27,144.24,0.71]
[1764821981687,11.68659623,144.27,144.24,0.71]
[1764821981865,6.93177559,144.27,144.24,0.71]
[1764821982066,10.96659623,144.27,144.24,0.71]
[1764821982556,11.64659623,144.27,144.24,0.71]
[1764821983468,7.61177559,144.27,144.24,0.71]
[1764821984680,6.93177559,144.27,144.24,0.71]
[1764821986699,6.93177559,144.27,144.24,4.74482064]
[1764821987283,6.93177559,144.27,144.25,0.68]
[1764821987493,10.96815341,144.29,144.25,4.71482064]
[1764821987661,23.23891769,144.3,144.26,4.03482064]
[1764821987863,23.23891769,144.3,144.27,0.68]
[1764821988676,17.32417608,144.32,144.29,4.03482064]
[1764821988869,7.60818695,144.34,144.29,4.03482064]
[1764821989075,16.308864,144.33,144.3,0.68]
[1764821989378,16.988864,144.33,144.3,0.68]
[1764821989576,27.95227336,144.33,144.3,0.68]
[1764821992269,23.91745272,144.33,144.3,0.68]
[1764821992483,27.95227336,144.33,144.3,0.68]
[1764821992679,13.52476556,144.32,144.27,4.71482064]
[1764821992869,4.03482064,144.31,144.27,7.61133609]
[1764821993065,4.71482064,144.31,144.28,0.68]
[1764821993264,0.68,144.31,144.28,0.68]
[1764821993577,4.71482064,144.31,144.28,0.68]
[1764821994674,11.64440372,144.31,144.28,0.68]
[1764821995968,6.92958308,144.31,144.28,0.68]
[1764821997092,7.60958308,144.31,144.28,0.68]
[1764821997288,0.68,144.3,144.26,19.28663396]
[1764821997464,10.96440372,144.31,144.27,0.68]
[1764821997664,13.52476556,144.3,144.25,4.03482064]
[1764821997894,8.80994492,144.28,144.23,8.32]
[1764821998072,8.80994492,144.28,144.24,4.03482064]
[1764821998281,9.48994492,144.28,144.24,4.71482064]
[1764821998479,9.48994492,144.28,144.25,0.68]
[1764821999083,16.42095992,144.28,144.25,0.68]
[1764822000478,0.68,144.27,144.23,19.28803835]
[1764822000680,19.77578056,144.28,144.24,0.68]
[1764822000883,8.80994492,144.26,144.23,8.32]
[1764822001093,8.80994492,144.26,144.24,0.68]
[1764822003508,15.74187362,144.26,144.24,0.68]
[1764822004201,15.74187362,144.26,144.23,7.64]
[1764822004514,15.74187362,144.26,144.24,0.68]
[1764822005215,8.80994492,144.26,144.24,0.68]
[1764822005388,9.51556631,144.27,144.24,0.68]
[1764822005593,6.93159981,144.27,144.24,0.68]